bitfinex-derivatives/quotes_BTCF0:USTF0_20251215
["timestamp","ask_amount","ask_price","bid_price","bid_amount"]
[1765831026794,0.003,85955.0,85954.0,0.89865]
[1765831027294,0.0116349,85958.0,85957.0,0.68744]
[1765831028086,1.1710736,85968.0,85967.0,0.68744]
[1765831029087,1.1710736,85968.0,85967.0,0.33931]
[1765831029285,0.0116351,85957.0,85956.0,0.68744]
[1765831029485,0.0116347,85961.0,85960.0,0.68744]
[1765831030787,0.0116347,85961.0,85960.0,0.89865]
[1765831031190,0.0136347,85961.0,85960.0,0.89865]
[1765831031390,0.98333745,85970.0,85969.0,0.68744]
[1765831031595,0.6853933,85970.0,85969.0,0.68744]
[1765831032598,0.48230228,85971.0,85970.0,0.89865]
[1765831034084,0.48330228,85971.0,85970.0,0.89865]
[1765831035292,1.15706228,85971.0,85970.0,0.89865]
[1765831035891,0.48330228,85971.0,85970.0,0.89865]
[1765831036599,0.80860228,85971.0,85970.0,0.89865]
[1765831036801,1.15606228,85971.0,85970.0,0.89865]
[1765831038306,0.48230228,85971.0,85970.0,0.89865]
[1765831038492,0.0116331,85972.0,85971.0,0.68744]
[1765831039298,0.33925839,85978.0,85977.0,0.89865]
[1765831039489,0.04422674,85978.0,85977.0,0.89865]
[1765831039692,0.71798674,85978.0,85977.0,0.89865]
[1765831040004,0.6853932,85971.0,85970.0,0.89865]
[1765831040197,0.71567624,85971.0,85970.0,0.89865]
[1765831041098,0.71567624,85971.0,85962.0,0.00017457]
[1765831041099,0.6853943,85963.0,85962.0,0.00017457]
[1765831041300,0.71569154,85963.0,85962.0,0.00017457]
[1765831041498,0.67376,85963.0,85962.0,0.68761457]
[1765831041695,0.685393,85972.0,85971.0,0.68744]
[1765831041998,0.71569093,85972.0,85971.0,0.68744]
[1765831042197,0.6853943,85963.0,85962.0,0.68761457]
[1765831042402,0.67376,85963.0,85962.0,0.68761457]
[1765831042989,0.67376,85963.0,85962.0,0.00017457]
[1765831042990,0.70406574,85963.0,85962.0,0.00017457]
[1765831043699,0.03030574,85963.0,85945.0,0.78023424]
[1765831043903,0.03030574,85963.0,85941.0,0.21121]
[1765831043904,0.70406574,85962.0,85961.0,0.68744]
[1765831044101,0.03030574,85962.0,85961.0,0.68744]
[1765831044306,0.70406574,85962.0,85961.0,0.68744]
[1765831046604,0.70406574,85962.0,85953.0,0.00017457]
[1765831046605,0.6853955,85954.0,85953.0,0.68761457]
[1765831046803,0.71570124,85954.0,85953.0,0.00017457]
[1765831047006,0.70406574,85954.0,85953.0,0.00017457]
[1765831051500,0.70406574,85954.0,85953.0,0.67507457]
[1765831051693,0.70406574,85954.0,85953.0,0.33948457]
[1765831052102,0.03030574,85954.0,85953.0,0.67507457]
[1765831052301,0.33128,85966.0,85965.0,0.66653]
[1765831052510,0.36165292,85966.0,85965.0,0.66653]
[1765831053106,0.69763292,85966.0,85965.0,0.66653]
[1765831054910,0.37328682,85966.0,85965.0,0.66653]
[1765831055205,0.70926682,85966.0,85965.0,0.66653]
[1765831055814,0.69763292,85966.0,85965.0,0.66653]
[1765831056601,0.03037292,85966.0,85965.0,0.66653]
[1765831058006,0.69763292,85966.0,85965.0,0.66653]
[1765831058210,0.69763292,85966.0,85959.0,0.87168]
[1765831058211,0.66726,85960.0,85959.0,0.87168]
[1765831058512,0.69763292,85960.0,85959.0,0.87168]
[1765831059415,0.03037292,85960.0,85959.0,0.87168]
[1765831061016,0.36165292,85960.0,85959.0,0.87168]
[1765831061223,0.66726,85954.0,85953.0,0.66670457]
[1765831061407,0.66726,85960.0,85959.0,0.66653]
[1765831061608,0.36107839,85960.0,85959.0,0.87168]
[1765831061915,0.02979839,85960.0,85959.0,0.87168]
[1765831067928,0.0116339,85966.0,85965.0,0.66653]
[1765831068225,0.33145457,85970.0,85969.0,0.66653]
[1765831068424,0.37272631,85970.0,85969.0,0.66653]
[1765831068917,0.6788947,85960.0,85959.0,0.33622]
[1765831069122,0.70853314,85960.0,85959.0,0.66653]
[1765831069517,0.6788955,85954.0,85953.0,0.66670457]
[1765831069724,0.0116338,85967.0,85953.0,0.66670457]
[1765831070024,0.678895,85958.0,85957.0,0.66653]
[1765831070223,0.70847944,85958.0,85957.0,0.66653]
[1765831070424,0.69684444,85958.0,85957.0,0.66653]
[1765831072027,0.29811831,85970.0,85959.0,0.20515]
[1765831072028,0.00017457,85970.0,85959.0,0.20515]
[1765831072224,0.66726,85962.0,85961.0,0.66653]
[1765831072542,0.69684403,85962.0,85961.0,0.66653]
[1765831074939,0.70847843,85962.0,85961.0,0.66653]
[1765831076942,0.69684403,85962.0,85961.0,0.66653]
[1765831078030,0.66726,85954.0,85953.0,0.66670457]
[1765831078739,0.6788943,85963.0,85962.0,0.66653]
[1765831078946,0.70848285,85963.0,85962.0,0.66653]
[1765831080146,0.69684855,85963.0,85962.0,0.6781644]
[1765831080344,0.69684855,85963.0,85962.0,0.66653]
[1765831080540,0.70848285,85963.0,85962.0,0.66653]
[1765831080738,0.6788955,85954.0,85953.0,0.00017457]
[1765831080939,0.70848405,85954.0,85953.0,0.00017457]
[1765831081134,0.69684855,85954.0,85953.0,0.66670457]
[1765831081850,0.69884855,85954.0,85953.0,0.66670457]
[1765831082048,0.69884855,85954.0,85953.0,0.67834017]
[1765831082348,0.71048405,85954.0,85953.0,0.66670457]
[1765831083141,0.71048405,85954.0,85953.0,0.67809457]
[1765831083142,0.71248405,85954.0,85953.0,0.67809457]
[1765831083651,0.71148405,85954.0,85953.0,0.67809457]
[1765831083854,0.71048405,85954.0,85953.0,0.67809457]
[1765831084149,0.70948405,85954.0,85953.0,0.67809457]
[1765831084341,0.71148405,85954.0,85953.0,0.67809457]
[1765831084542,0.51606912,85954.0,85953.0,0.67809457]
[1765831084951,0.51806912,85954.0,85953.0,0.67809457]
[1765831085145,0.004,85954.0,85953.0,0.67809457]
[1765831085350,0.00017457,85970.0,85969.0,0.6988]
[1765831085744,0.02897407,85970.0,85969.0,0.6988]
[1765831086239,0.72024407,85970.0,85969.0,0.6988]
[1765831087853,0.72224407,85970.0,85969.0,0.6988]
[1765831088054,0.03097407,85970.0,85969.0,0.6988]
[1765831088443,0.38561407,85970.0,85969.0,0.6988]
[1765831089250,0.72024407,85970.0,85969.0,0.6988]
[1765831089551,0.02897407,85970.0,85969.0,0.6988]
[1765831089754,0.04060737,85970.0,85969.0,0.6988]
[1765831090051,0.39524737,85970.0,85969.0,0.6988]
[1765831090253,0.04060737,85970.0,85969.0,0.6988]
[1765831090751,0.39524737,85970.0,85969.0,0.6988]
[1765831090944,0.73187737,85970.0,85969.0,0.6988]
[1765831094060,0.73187737,85970.0,85960.0,0.19961]
[1765831094061,0.7029045,85961.0,85960.0,0.89841]
[1765831094250,0.731704,85961.0,85960.0,0.89841]
[1765831094648,0.7200695,85961.0,85960.0,0.89841]
[1765831094852,0.69127,85961.0,85960.0,0.9100447]
[1765831095053,0.35464,85961.0,85960.0,0.89841]
[1765831095553,0.35464,85961.0,85960.0,0.89941]
[1765831095755,0.69144457,85970.0,85969.0,0.6988]
[1765831095953,0.72020386,85970.0,85969.0,0.6988]
[1765831096552,1.11517386,85970.0,85969.0,0.6988]
[1765831096756,0.38357386,85970.0,85969.0,0.6988]
[1765831097059,0.72020386,85970.0,85969.0,0.6988]
[1765831098362,0.02893386,85970.0,85969.0,0.6988]
[1765831098668,3.86e-06,85970.0,85969.0,0.6988]
[1765831099451,0.00232619,85978.0,85969.0,0.3417]
[1765831099652,0.14505037,86016.0,85968.0,0.19961]
[1765831099653,0.0116307,85989.0,85988.0,0.6988]
[1765831100249,0.42857334,85989.0,85988.0,0.6988]
[1765831100463,0.7029013,85985.0,85984.0,0.55671]
[1765831100762,0.69127,85981.0,85980.0,0.69897446]
[1765831100964,0.3662718,85981.0,85980.0,0.69897446]
[1765831101264,0.7029013,85985.0,85984.0,0.19961]
[1765831101462,0.7029013,85985.0,85984.0,0.89841]
[1765831102157,0.75365821,85988.0,85987.0,0.6988]
[1765831103564,0.69127,85988.0,85987.0,0.6988]
[1765831104263,0.7029018,85981.0,85980.0,0.69897446]
[1765831104662,0.7029018,85981.0,85980.0,0.00017446]
[1765831104860,0.7029018,85981.0,85960.0,0.2112446]
[1765831104861,0.69127,85961.0,85960.0,0.54131]
[1765831105161,0.69127,85961.0,85960.0,0.89841]
[1765831106157,0.69127,85961.0,85960.0,0.90141]
[1765831107162,0.69127,85961.0,85960.0,0.89841]
[1765831107669,0.7030775,85969.0,85968.0,0.6988]
[1765831108973,0.69127,85961.0,85960.0,0.89841]
[1765831109269,0.7030775,85969.0,85968.0,0.89841]
[1765831109665,0.6914441,85969.0,85968.0,0.89841]
[1765831111266,0.6914441,85969.0,85968.0,0.6988]
[1765831111774,0.66915,85961.0,85960.0,0.89404]
[1765831111955,0.69726947,85961.0,85960.0,0.89404]
[1765831112570,0.02811947,85961.0,85960.0,0.89404]
[1765831114073,0.37100947,85961.0,85960.0,0.89404]
[1765831114265,0.70769947,85961.0,85960.0,0.89404]
[1765831116469,0.02811947,85961.0,85960.0,0.89404]
[1765831116871,0.37100947,85961.0,85960.0,0.89404]
[1765831117174,0.34289,85961.0,85960.0,0.89404]
[1765831117363,0.37100594,85961.0,85960.0,0.89404]
[1765831117565,0.70769594,85961.0,85960.0,0.89404]
[1765831117769,0.67958,85953.0,85952.0,0.87391446]
[1765831118070,0.70769359,85953.0,85952.0,0.87391446]
[1765831118462,0.8827363,85962.0,85961.0,0.67413]
[1765831118662,0.70769418,85962.0,85961.0,0.67413]
[1765831118865,0.02811418,85962.0,85961.0,0.67413]
[1765831119767,0.37100418,85962.0,85961.0,0.67413]
[1765831119973,0.37100418,85962.0,85961.0,0.67513]
[1765831120878,0.02811418,85962.0,85961.0,0.67513]
[1765831121467,0.02811418,85962.0,85961.0,0.67413]
[1765831121662,0.0001741,85969.0,85968.0,0.67413]
[1765831121870,0.0001741,85969.0,85968.0,0.6857636]
[1765831122379,0.02830368,85969.0,85968.0,0.6857636]
[1765831123962,0.02830368,85969.0,85968.0,0.67413]
[1765831124269,0.02830368,85969.0,85968.0,0.67513]
[1765831125975,0.70788368,85969.0,85968.0,0.67513]
[1765831127677,0.70788368,85969.0,85968.0,0.67413]
[1765831128773,0.02830368,85969.0,85968.0,0.6857636]
[1765831129374,0.20314209,85990.0,85968.0,0.6857636]
[1765831129375,0.06235612,86010.0,85989.0,0.6857607]
[1765831129581,0.67958,86004.0,86003.0,0.67413]
[1765831130871,0.67958,85996.0,85995.0,0.00017446]
[1765831131072,0.67958,85996.0,85995.0,0.01355758]
[1765831131268,0.3545188,86004.0,86003.0,0.67413]
[1765831131469,0.67958,86004.0,86003.0,0.67413]
[1765831132677,0.35066209,86013.0,86012.0,0.67413]
[1765831132678,0.8271,86013.0,86012.0,0.67413]
[1765831132978,0.14752,86013.0,86012.0,0.67413]
[1765831133279,0.01395191,86018.0,86017.0,0.67413]
[1765831133674,0.00232511,86018.0,86017.0,0.67413]
[1765831134086,0.68190511,86018.0,86017.0,0.67413]
[1765831135172,0.00232511,86018.0,86017.0,0.67413]
[1765831141280,0.67958,86043.0,86042.0,0.67413]
[1765831141485,0.3702472,86043.0,86042.0,0.67413]
[1765831141675,0.7069372,86043.0,86042.0,0.67413]
[1765831141872,0.7069372,86043.0,86042.0,0.68685865]
[1765831142177,0.67636,86052.0,86051.0,0.68243]
[1765831142491,0.6879822,86052.0,86051.0,0.68243]
[1765831142884,0.6879822,86052.0,86051.0,0.34606]
[1765831143280,0.67636,86050.0,86049.0,0.8862]
[1765831143489,0.67636,86043.0,86042.0,0.69515865]
[1765831143682,0.67636,86043.0,86042.0,0.01272865]
[1765831143981,0.20314209,86052.0,86034.0,0.68260433]
[1765831143982,0.33082,86035.0,86034.0,0.68260433]
[1765831144175,0.67636,86035.0,86034.0,0.6954396]
[1765831144377,0.67636,86035.0,86034.0,0.0130096]
[1765831145489,0.67636,86045.0,86044.0,0.68243]
[1765831145787,1.40744,86045.0,86044.0,0.68243]
[1765831145977,0.67636,86045.0,86044.0,0.68243]
[1765831146378,0.01394553,86058.0,86044.0,0.68243]
[1765831146578,0.33082,86050.0,86049.0,0.8862]
[1765831147175,0.6879818,86056.0,86055.0,0.68243]
[1765831148079,0.6879818,86056.0,86055.0,0.34606]
[1765831148289,0.6879818,86056.0,86055.0,0.68243]
[1765831148686,0.67636,86050.0,86049.0,0.8862]
[1765831148882,0.73332403,86058.0,86049.0,0.8862]
[1765831148883,0.67868403,86058.0,86057.0,0.68243]
[1765831154177,0.67636,86050.0,86049.0,0.8862]
[1765831154787,0.33314403,86058.0,86057.0,0.68243]
[1765831154988,0.00232403,86058.0,86057.0,0.68243]
[1765831155188,0.67868403,86058.0,86057.0,0.68243]
[1765831156391,0.00232403,86058.0,86057.0,0.68243]
[1765831157789,0.02966697,86058.0,86057.0,0.68243]
[1765831157990,0.00232403,86058.0,86057.0,0.68243]
[1765831158498,0.67868403,86058.0,86057.0,0.68243]
[1765831158882,0.00232403,86058.0,86057.0,0.68243]
[1765831159294,0.02971643,86058.0,86057.0,0.68243]
[1765831159694,0.67636,86064.0,86063.0,0.68243]
[1765831160295,0.67636,86069.0,86064.0,0.20377]
[1765831160497,0.67636,86069.0,86068.0,0.68243]
[1765831161292,0.6879794,86073.0,86072.0,0.8862]
[1765831161695,0.67636,86065.0,86064.0,0.8862]
[1765831161894,4.6e-06,86104.0,86103.0,0.68243]
[1765831162099,0.10358388,86119.0,86118.0,0.68243]
[1765831162398,0.13707953,86138.0,86118.0,2.18243]
[1765831162698,0.29731021,86130.0,86120.0,0.20377]
[1765831162995,0.3814,86135.0,86120.0,0.20377]
[1765831163493,0.393011,86135.0,86120.0,0.21688426]
[1765831163692,0.3814,86135.0,86120.0,0.21688426]
[1765831163888,0.3407177,86133.0,86132.0,0.68243]
[1765831164085,0.6862577,86133.0,86132.0,0.68243]
[1765831164790,0.67636,86121.0,86120.0,0.89931426]
[1765831165397,0.67636,86121.0,86120.0,0.69554426]
[1765831166001,0.67636,86121.0,86120.0,0.89931426]
[1765831166202,0.0098977,86133.0,86121.0,0.0116129]
[1765831166504,0.6862577,86133.0,86132.0,0.68243]
[1765831166999,0.33082,86121.0,86120.0,0.89931426]
[1765831167200,0.33082,86132.0,86131.0,0.68243]
[1765831167497,0.67636,86132.0,86131.0,0.68243]
[1765831168000,0.0215091,86133.0,86120.0,0.89931426]
[1765831169196,0.0098977,86133.0,86120.0,0.89931426]
[1765831169897,0.6862577,86133.0,86132.0,0.68243]
[1765831170100,0.67636,86121.0,86120.0,0.89931426]
[1765831170495,1.00718,86131.0,86130.0,0.68243]
[1765831170995,1.00718,86131.0,86130.0,0.88062]
[1765831171403,1.00718,86131.0,86130.0,0.68243]
[1765831171603,0.70524,86121.0,86120.0,0.91385426]
[1765831171800,0.70524,86121.0,86120.0,0.71008426]
[1765831172097,0.70524,86121.0,86120.0,0.68159312]
[1765831173309,0.35566,86121.0,86120.0,0.68159312]
[1765831173601,0.70398,86121.0,86120.0,0.68159312]
[1765831173805,0.70398,86121.0,86120.0,0.01815886]
[1765831173806,0.90125,86121.0,86120.0,0.01815886]
[1765831174004,0.70398,86121.0,86120.0,0.34235886]
[1765831174205,0.90125,86121.0,86120.0,0.01815886]
[1765831174404,1.63217,86121.0,86120.0,0.01815886]
[1765831175207,0.6885143,86111.0,86110.0,0.00017421]
[1765831176098,0.6885143,86111.0,86110.0,0.65049421]
[1765831176299,0.6769,86111.0,86110.0,0.65049421]
[1765831176595,0.6769,86111.0,86110.0,0.00017421]
[1765831176909,0.6769,86111.0,86110.0,0.65049421]
[1765831177110,0.40306021,86130.0,86110.0,0.65049421]
[1765831177298,0.7308,86129.0,86112.0,0.1954]
[1765831177497,0.43277691,86130.0,86112.0,0.1954]
[1765831177699,0.7308,86129.0,86112.0,0.1954]
[1765831178102,0.6769,86113.0,86112.0,0.3242]
[1765831178408,0.6769,86113.0,86112.0,0.65032]
[1765831180009,0.6769,86111.0,86110.0,0.00017421]
[1765831180608,0.6769,86111.0,86110.0,0.65049421]
[1765831180812,0.6769,86111.0,86110.0,0.32437421]
[1765831181408,0.6769,86111.0,86110.0,0.00017421]
[1765831186507,0.6769,86111.0,86110.0,0.65049421]
[1765831187014,0.6885143,86111.0,86110.0,0.00017421]
[1765831188508,0.6885157,86100.0,86099.0,0.35526006]
[1765831188707,0.6769,86095.0,86094.0,0.03106006]
[1765831188914,0.6885166,86094.0,86093.0,0.03106006]
[1765831189208,0.6885166,86094.0,86093.0,0.04409862]
[1765831189406,0.6885166,86094.0,86093.0,0.01303856]
[1765831189602,0.6769,86091.0,86090.0,0.69186979]
[1765831189810,1.40734,86091.0,86090.0,0.04154979]
[1765831190202,1.40734,86091.0,86090.0,0.05437823]
[1765831190417,1.40734,86091.0,86090.0,0.01282844]
[1765831190611,1.40734,86091.0,86090.0,0.3242]
[1765831190805,0.32858,86090.0,86089.0,0.06232468]
[1765831191011,0.6769,86090.0,86089.0,0.06232468]
[1765831191316,0.73044,86091.0,86085.0,0.00017421]
[1765831191317,0.6769,86086.0,86085.0,0.65049421]
[1765831191714,0.6885176,86086.0,86085.0,0.01310982]
[1765831192221,0.6885176,86086.0,86085.0,0.00017421]
[1765831192418,0.6769,86077.0,86076.0,0.08367495]
[1765831192612,0.6769,86072.0,86071.0,0.06258783]
[1765831192918,0.6769,86072.0,86071.0,0.65032]
[1765831193218,0.6769,86072.0,86071.0,0.72588172]
[1765831193402,0.6769,86072.0,86071.0,0.66328988]
[1765831193808,0.6769,86072.0,86071.0,0.66428988]
[1765831194411,0.6769,86072.0,86071.0,0.70798093]
[1765831194611,0.6769,86072.0,86071.0,0.66628988]
[1765831195424,0.6769,86072.0,86071.0,0.70796509]
[1765831196411,0.6769,86072.0,86071.0,0.66628988]
[1765831199020,0.6885195,86072.0,86071.0,0.6975201]
[1765831199417,0.6885195,86072.0,86071.0,0.66628988]
[1765831200224,0.8857895,86072.0,86071.0,0.003]
[1765831200823,0.87417,86072.0,86071.0,0.003]
[1765831201120,0.87417,86072.0,86066.0,0.02162337]
[1765831201121,0.6885202,86067.0,86066.0,0.02162337]
[1765831201319,0.6885202,86067.0,86037.0,0.65032]
[1765831201320,0.6769,86038.0,86037.0,0.65032]
[1765831201624,0.6885241,86038.0,86037.0,0.33659709]
[1765831201922,1.40754,86038.0,86037.0,0.66588709]
[1765831202124,1.40754,86038.0,86037.0,0.65349]
[1765831202307,1.40764074,86038.0,86037.0,0.65349]
[1765831202511,1.40764074,86038.0,86037.0,0.66584296]
[1765831202923,1.40664074,86038.0,86037.0,0.66584296]
[1765831203317,1.40664074,86038.0,86037.0,0.34826296]
[1765831203727,1.40664074,86038.0,86037.0,0.34126296]
[1765831204023,1.40764074,86038.0,86037.0,0.34126296]
[1765831204527,0.66432,86032.0,86031.0,0.86651]
[1765831205422,0.66432,86032.0,86031.0,0.8794214]
[1765831206111,0.66632,86032.0,86031.0,0.8794214]
[1765831206515,0.66732,86032.0,86031.0,0.8794214]
[1765831206716,0.66732,86032.0,86029.0,0.00017431]
[1765831206717,0.66432,86030.0,86029.0,0.00017431]
[1765831207519,0.33944,86032.0,86031.0,0.86651]
[1765831207729,1.39796,86032.0,86031.0,0.86651]
[1765831207928,1.39796,86032.0,86031.0,0.65349]
[1765831208126,0.66432,86030.0,86029.0,0.65366431]
[1765831208329,0.66532,86030.0,86029.0,0.65366431]
[1765831208521,0.66632,86030.0,86029.0,0.00017431]
[1765831209217,0.66532,86030.0,86029.0,0.00017431]
[1765831209424,0.66732,86030.0,86029.0,0.00017431]
[1765831209620,0.66632,86030.0,86029.0,0.00017431]
[1765831209821,0.66632,86030.0,86029.0,0.32908431]
[1765831210529,0.66832,86030.0,86029.0,0.32908431]
[1765831210726,0.34044,86030.0,86029.0,0.65366431]
[1765831211033,0.86756,86030.0,86029.0,0.65366431]
[1765831212217,0.66632,86030.0,86029.0,0.65366431]
[1765831212423,0.003,86030.0,86029.0,0.65366431]
[1765831213028,0.00010074,86038.0,86037.0,0.6651143]
[1765831213633,0.00017431,86046.0,86045.0,0.6651132]
[1765831215429,0.6759405,86065.0,86064.0,0.65349]
[1765831215631,0.7403405,86065.0,86064.0,0.65349]
[1765831215936,0.72872,86065.0,86064.0,0.65349]
[1765831216120,0.66432,86059.0,86058.0,0.86651]
[1765831216931,0.33644,86059.0,86058.0,0.86651]
[1765831217133,0.66432,86059.0,86058.0,0.86651]
[1765831217531,0.66532,86059.0,86058.0,0.86651]
[1765831217835,0.33644,86051.0,86050.0,0.65366431]
[1765831218039,0.66432,86051.0,86050.0,0.65366431]
[1765831218346,1.39504,86051.0,86050.0,0.00017431]
[1765831219832,1.39504,86051.0,86050.0,0.65366431]
[1765831220029,1.4534,86077.0,86050.0,0.65366431]
[1765831220229,1.0303804,86066.0,86065.0,0.65349]
[1765831220641,0.66432,86059.0,86058.0,0.65349]
[1765831220839,0.66432,86059.0,86058.0,0.32891]
[1765831221140,0.33644,86051.0,86050.0,0.65366431]
[1765831222143,0.66432,86051.0,86050.0,0.65366431]
[1765831222328,0.66432,86051.0,86050.0,0.00017431]
[1765831223143,1.39504,86051.0,86050.0,0.00017431]
[1765831223436,1.39504,86051.0,86050.0,0.65366431]
[1765831223437,1.06716,86051.0,86050.0,0.65366431]
[1765831223635,0.33644,86051.0,86050.0,0.65366431]
[1765831224142,0.66432,86051.0,86050.0,0.65366431]
[1765831224726,0.66432,86051.0,86050.0,0.00017431]
[1765831226832,0.2693951,86100.0,86064.0,0.32891]
[1765831226833,0.6759406,86065.0,86064.0,0.32891]
[1765831227030,0.66432,86051.0,86050.0,0.65366431]
[1765831227436,0.0116204,86066.0,86052.0,0.0116222]
[1765831227836,0.6759404,86066.0,86065.0,0.32891]
[1765831228036,1.4066604,86066.0,86065.0,0.32891]
[1765831228238,0.66432,86059.0,86058.0,0.65349]
[1765831229743,0.66432,86059.0,86058.0,0.86651]
[1765831231641,0.67227,86051.0,86050.0,0.65551431]
[1765831232037,0.7282106,86065.0,86050.0,0.00017431]
[1765831232439,0.7282106,86065.0,86053.0,0.0116221]
[1765831232936,0.0116208,86063.0,86053.0,0.0116221]
[1765831233744,0.71659,86063.0,86062.0,0.6897]
[1765831233931,0.7282107,86063.0,86062.0,0.6897]
[1765831234342,0.71659,86063.0,86062.0,0.6897]
[1765831235246,0.71659,86057.0,86056.0,0.6897]
[1765831235442,0.71659,86057.0,86056.0,0.89353]
[1765831235749,0.71659,86057.0,86056.0,0.6897]
[1765831238539,0.7282124,86051.0,86050.0,0.00017431]
[1765831238845,1.44727,86051.0,86050.0,0.00017431]
[1765831241343,0.71659,86064.0,86063.0,0.6897]
[1765831241545,0.71659,86064.0,86056.0,0.20383]
[1765831241546,0.71659,86057.0,86056.0,0.93533179]
[1765831241746,0.71659,86057.0,86056.0,0.89353]
[1765831241948,0.71659,86057.0,86056.0,0.93533179]
[1765831242343,0.71659,86057.0,86056.0,0.73150179]
[1765831242737,0.7282115,86057.0,86056.0,0.33183]
[1765831242936,0.7282118,86055.0,86054.0,0.04180179]
[1765831243139,0.71659,86055.0,86054.0,0.73150179]
[1765831243345,0.71659,86055.0,86054.0,0.6897]
[1765831245154,0.71659,86055.0,86054.0,0.73151224]
[1765831245348,0.98157096,86064.0,86052.0,0.04181224]
[1765831245349,0.7282121,86053.0,86052.0,0.04181224]
[1765831245555,1.4588521,86053.0,86052.0,0.04181224]
[1765831245942,1.44723,86053.0,86052.0,0.73151224]
[1765831246257,1.44723,86053.0,86052.0,0.6897]
[1765831247052,1.44723,86053.0,86052.0,0.33183]
[1765831247249,1.44723,86053.0,86052.0,0.6897]
[1765831247555,0.7282106,86064.0,86063.0,0.6897]
[1765831247752,0.7282121,86053.0,86052.0,0.33183]
[1765831247946,0.7282121,86053.0,86052.0,0.37364138]
[1765831248142,0.71659,86053.0,86052.0,0.73151138]
[1765831248353,0.71659,86053.0,86052.0,0.73151098]
[1765831248749,0.71659,86053.0,86052.0,0.6897]
[1765831249252,0.20270096,86062.0,86061.0,0.6897]
[1765831249253,0.71659,86062.0,86061.0,0.6897]
[1765831249555,1.44723,86062.0,86061.0,0.6897]
[1765831253057,0.7282113,86059.0,86058.0,0.04181388]
[1765831253263,0.92102,86056.0,86055.0,0.04181388]
[1765831253658,0.7282121,86053.0,86052.0,0.04181388]
[1765831253862,0.7282121,86053.0,86038.0,0.08367495]
[1765831253863,0.71659,86051.0,86049.0,0.04181388]
[1765831254165,0.71659,86046.0,86044.0,8.19e-06]
[1765831254366,0.71659,86038.0,86037.0,0.06235149]
[1765831254565,0.71659,86038.0,86011.0,0.14587424]
[1765831254566,0.7282143,86037.0,86036.0,0.06235149]
[1765831254865,0.7282143,86037.0,86035.0,0.06235149]
[1765831255060,0.71659,86035.0,86034.0,0.06235149]
[1765831255461,0.71559,86035.0,86034.0,0.06235149]
[1765831256165,0.7282147,86034.0,86033.0,0.06235149]
[1765831257254,0.71659,86033.0,86032.0,0.06235149]
[1765831257654,0.71659,86027.0,86026.0,0.00017431]
[1765831257859,1.44727,86027.0,86026.0,0.00017431]
[1765831259466,0.7282164,86021.0,86020.0,0.08367495]
[1765831259666,0.71659,86019.0,86018.0,0.00232511]
[1765831259969,1.44727,86019.0,86018.0,0.00232511]
[1765831260355,0.35947,86010.0,86009.0,0.06268536]
[1765831260557,0.71659,86008.0,86007.0,0.39451536]
[1765831260757,0.71659,86008.0,86001.0,0.00032517]
[1765831260758,0.00017431,86018.0,86017.0,0.6897]
[1765831260963,0.86736431,86018.0,86017.0,0.6897]
[1765831261158,0.15077431,86018.0,86017.0,0.6897]
[1765831261364,0.86736431,86018.0,86017.0,0.6897]
[1765831262263,0.86836431,86018.0,86017.0,0.6897]
[1765831265663,0.86836431,86018.0,86007.0,0.6859586]
[1765831265664,0.69913,86008.0,86007.0,0.6859586]
[1765831266060,0.894,86008.0,86007.0,0.0127286]
[1765831266265,0.69913,86002.0,86001.0,0.67355517]
[1765831266963,0.69913,86002.0,86001.0,0.68603524]
[1765831267667,0.15077431,86018.0,86001.0,0.01380524]
[1765831267866,0.33974,86009.0,86008.0,0.8724]
[1765831268168,0.69913,86009.0,86008.0,0.8724]
[1765831268665,0.00017431,86018.0,86017.0,0.67323]
[1765831269265,0.33991431,86018.0,86017.0,0.67323]
[1765831270159,0.69930431,86018.0,86017.0,0.67323]
[1765831270667,0.00117431,86018.0,86017.0,0.684857]
[1765831271253,0.7308,86026.0,86025.0,0.67323]
[1765831272862,0.01179912,86034.0,86016.0,0.40213016]
[1765831272863,0.00017442,86034.0,86033.0,0.67323]
[1765831273966,0.33991442,86034.0,86033.0,0.67323]
[1765831274165,0.69930442,86034.0,86033.0,0.67323]
[1765831275465,0.33991442,86034.0,86033.0,0.67323]
[1765831275858,0.00017442,86034.0,86033.0,0.67323]
[1765831276268,0.69930442,86034.0,86033.0,0.67323]
[1765831276972,0.69930442,86034.0,86033.0,0.6848548]
[1765831277163,0.69930442,86034.0,86033.0,0.67323]
[1765831278872,0.69930442,86034.0,86031.0,0.19917]
[1765831278873,0.7107557,86026.0,86025.0,0.67340442]
[1765831279069,0.7107557,86026.0,86025.0,0.00017442]
[1765831279863,0.69913,86009.0,86008.0,0.67323]
[1765831280864,0.5843054,86009.0,86008.0,0.67323]
[1765831281969,0.69913,86002.0,86001.0,0.68586093]
[1765831283072,0.710759,86002.0,86001.0,0.68586093]
[1765831283575,0.69913,86002.0,86001.0,0.68586093]
[1765831284075,0.69930442,86010.0,86009.0,0.67323]
[1765831285979,0.69913,86007.0,86006.0,0.36719036]
[1765831286177,0.69913,86007.0,86006.0,0.71499036]
[1765831286673,0.7107584,86006.0,86005.0,0.04176036]
[1765831286871,0.69913,86004.0,86003.0,0.04176036]
[1765831287063,0.7107588,86003.0,86002.0,0.04176036]
[1765831287272,0.69913,86002.0,86001.0,0.33806093]
[1765831287467,0.69913,86002.0,86001.0,0.01263093]
[1765831287769,0.69913,86002.0,86001.0,0.72764118]
[1765831288076,0.69913,86002.0,86001.0,0.68586093]
[1765831288278,0.710759,86002.0,86001.0,0.01263093]
[1765831288874,0.710759,86002.0,86001.0,0.00015086]
[1765831289075,0.710759,86002.0,86001.0,0.04178985]
[1765831289276,0.69913,86001.0,86000.0,0.00017442]
[1765831290181,0.69924509,86001.0,86000.0,0.00017442]
[1765831290374,0.69924509,86001.0,86000.0,0.04196774]
[1765831290570,0.69924509,86001.0,86000.0,0.00017442]
[1765831291182,0.69924509,86001.0,86000.0,0.69213442]
[1765831291381,0.00011509,86001.0,86000.0,0.89744442]
[1765831291875,0.69636509,86001.0,86000.0,0.33552442]
[1765831292074,0.69636509,86001.0,86000.0,0.00017442]
[1765831292280,0.70799419,86001.0,86000.0,0.00017442]
[1765831294872,0.69636509,86001.0,86000.0,0.89533442]
[1765831295178,0.69636509,86001.0,86000.0,0.00017442]
[1765831297382,0.69636509,86001.0,86000.0,0.34353442]